{"text_format":"1","workbook":"xlsx","n_sheets":5,"sheets":["Valgmuligheder","F2017","F2018","Indtastning","Søgning"],"not_rendered":{"charts":0,"images":0,"macros":1,"external_links":0,"defined_names":0,"comments":0,"pivot_tables":0},"unopened":[],"bounds":{"document_bytes":16777216,"sheet_cells":100000,"rows_first":2000,"rows_last":500,"rows_between":2000,"halvings":0,"cell_chars":16384,"cell_head_chars":4096},"cells_cut":0,"cells_raw":0,"read":"whole","date_system":"1900"}

{"sheet":"Valgmuligheder","index":0,"n_rows":23,"n_cols":7,"rows_kept":23,"cut":false,"hidden":false,"merged":[[0,0,1,8]]}
["Valgmuligheder ved indtstning af nye data"]
[]
["Dato","Mund/skr","Nr i sæt","Bestå%","Alder","Speciale","Emne"]
["F2016","Mundtlig",1,null,"Spæd","Kardiologi","Sepsis"]
["F2017","Skriftlig",2,null,"Barn","Lungemed","Blødning"]
["F2018",null,3,null,"Ung","Pædiatri","Pneumoni"]
["F2019",null,4,null,"Voksen","Kirurgi","Meningitis"]
["Reserve",null,5,null,"Gammel","Onkologi","Epiglottis"]
[null,null,6,null,null,"Ortopædkirurgi"]
[null,null,7,null,null,"Almen Praksis"]
[null,null,8,null,null,"Psykiatri"]
[null,null,9]
[null,null,10]
[null,null,11]
[null,null,12]
[null,null,13]
[null,null,14]
[null,null,15]
[null,null,16]
[null,null,17]
[null,null,18]
[null,null,19]
[null,null,20]

{"sheet":"F2017","index":1,"n_rows":50,"n_cols":8,"rows_kept":50,"cut":false,"hidden":false,"merged":[[0,1,0,7]]}
[null,"OSCE eksamen forår 2017"]
[null,"Opgave nr","Mundtlig\n/skriftlig","Alderssegment","Specialer","Emneområde","Kort titel","Link"]
[null,1,"Mundtlig","Barn","Pædiatri, Kirurgi, Onkologi, Ortopædkirurgi, Almen Praksis, Psykiatri, 0,       ","Pneumoni, Meningitis, Epiglottis,         ","f..f.,..smf.m.,fm.mf.m.fma"]
[null,2]
[null,3]
[null,4,"Skriftlig","Ung","Pædiatri, Kirurgi,            ","Pneumoni,  Epiglottis, 0, 0, 0, 0, 0, 0, 0, 0, ","f..f.,..smf.m.,fm.mf.m.fma"]
[null,5]
[null,6]
[null,7]
[null,8]
[null,9]
[null,10]
[null,11,"S"]
[null,12]
[null,13,"M"]
[null,14]
[null,15]
[null,16]
[null,17]
[null,18]
[null,19]
[null,20]
[]
[]
[]
[]
[]
[]
[]
[]
[null,{"$f":"IF(C3<>\"\",\"\",ROW()-30)","v":""},"M"]
[null,{"$f":"IF(C4<>\"\",\"\",ROW()-30)","v":2},"S"]
[null,3]
[null,""]
[null,5]
[null,6]
[null,7]
[null,8]
[null,9]
[null,10]
[null,""]
[null,12]
[null,""]
[null,14]
[null,15]
[null,16]
[null,17]
[null,18]
[null,19]
[null,20]

{"sheet":"F2018","index":2,"n_rows":50,"n_cols":8,"rows_kept":50,"cut":false,"hidden":false,"merged":[[0,1,0,7]]}
[null,"OSCE eksamen forår 2018"]
[null,"Opgave nr","Mundtlig\n/skriftlig","Alderssegment","Specialer","Emneområde","Kort titel","Link"]
[null,1]
[null,2]
[null,3,"Skriftlig","Ung"," Kirurgi, Onkologi,  Almen Praksis,  0,       ","Pneumoni,  Epiglottis,         ","f..f.,..smf.m.,fm.mf.m.fma"]
[null,4]
[null,5]
[null,6]
[null,7]
[null,8]
[null,9]
[null,10]
[null,11]
[null,12]
[null,13]
[null,14]
[null,15]
[null,16]
[null,17]
[null,18]
[null,19]
[null,20]
[]
[]
[]
[]
[]
[]
[]
[]
[null,{"$f":"IF(C3<>\"\",\"\",ROW()-30)","v":1},"M"]
[null,{"$f":"IF(C4<>\"\",\"\",ROW()-30)","v":2},"S"]
[null,""]
[null,4]
[null,5]
[null,6]
[null,7]
[null,8]
[null,9]
[null,10]
[null,11]
[null,12]
[null,13]
[null,14]
[null,15]
[null,16]
[null,17]
[null,18]
[null,19]
[null,20]

{"sheet":"Indtastning","index":3,"n_rows":29,"n_cols":27,"rows_kept":29,"cut":false,"hidden":false,"merged":[[15,0,19,0],[20,0,24,0]]}
[]
[]
[]
[null,2,null,null,4,null,3,null,2]
[]
[]
[null,null,null,null,null,null,null,null,null,null,"Titel:","f..f.,..smf.m.,fm.mf.m.fma"]
[]
[null,null,null,null,null,null,null,null,null,null,null,{"$f":"Valgmuligheder!F4","v":"Kardiologi"},null,true,{"$f":"IF(N9,L9&\", \",\" \")","v":"Kardiologi, "},null,null,null,{"$f":"Valgmuligheder!G4","v":"Sepsis"},null,true,{"$f":"IF(U9,S9&\", \",\" \")","v":"Sepsis, "}]
[null,null,null,null,null,null,null,null,null,null,null,{"$f":"Valgmuligheder!F5","v":"Lungemed"},null,false,{"$f":"IF(N10,L10&\", \",\" \")","v":" "},null,null,null,{"$f":"Valgmuligheder!G5","v":"Blødning"},null,false,{"$f":"IF(U10,S10&\", \",\" \")","v":" "},null,null,null,null,{"$f":"af","v":{"$error":"#NAME?"}}]
[null,null,null,null,null,null,null,null,null,null,null,{"$f":"Valgmuligheder!F6","v":"Pædiatri"},null,false," ",null,null,null,{"$f":"Valgmuligheder!G6","v":"Pneumoni"},null,true,"Pneumoni, "]
[null,null,null,null,null,null,null,null,null,null,null,{"$f":"Valgmuligheder!F7","v":"Kirurgi"},null,true,"Kirurgi, ",null,null,null,{"$f":"Valgmuligheder!G7","v":"Meningitis"},null,false," "]
[null,null,null,null,null,null,null,null,null,null,null,{"$f":"Valgmuligheder!F8","v":"Onkologi"},null,false," ",null,null,null,{"$f":"Valgmuligheder!G8","v":"Epiglottis"},null,true,"Epiglottis, "]
[null,null,null,null,null,null,null,null,null,null,null,{"$f":"Valgmuligheder!F9","v":"Ortopædkirurgi"},null,false," ",null,null,null,{"$f":"Valgmuligheder!G9","v":0},null,true,"0, "]
[null,null,null,null,null,null,null,null,null,null,null,{"$f":"Valgmuligheder!F10","v":"Almen Praksis"},null,false," ",null,null,null,{"$f":"Valgmuligheder!G10","v":0},null,true,"0, "]
["Valg",{"$f":"INDEX(Valgmuligheder!A4:A8,B4)","v":"F2017"},null,{"$f":"E4","v":4},null,{"$f":"INDEX(Valgmuligheder!E4:E7,G4)","v":"Ung"},null,{"$f":"INDEX(Valgmuligheder!B4:B5,I4)","v":"Skriftlig"},null,null,null,{"$f":"Valgmuligheder!F11","v":"Psykiatri"},null,false," ",null,null,null,{"$f":"Valgmuligheder!G11","v":0},null,true,"0, "]
[null,null,null,{"$f":"L7","v":"f..f.,..smf.m.,fm.mf.m.fma"},null,null,null,null,null,null,null,{"$f":"Valgmuligheder!F12","v":0},null,false," ",null,null,null,{"$f":"Valgmuligheder!G12","v":0},null,true,"0, "]
[null,null,null,{"$f":"O26","v":" Kirurgi,            "},null,null,null,null,null,null,null,{"$f":"Valgmuligheder!F13","v":0},null,null," ",null,null,null,{"$f":"Valgmuligheder!G13","v":0},null,true,"0, "]
[null,null,null,{"$f":"V26","v":"Pneumoni,  Epiglottis, 0, 0, 0, 0, 0, 0, 0, 0, "},null,null,null,null,null,null,null,{"$f":"Valgmuligheder!F14","v":0},null,null," ",null,null,null,{"$f":"Valgmuligheder!G14","v":0},null,true,"0, "]
[null,null,null,null,null,null,null,null,null,null,null,{"$f":"Valgmuligheder!F15","v":0},null,null," ",null,null,null,{"$f":"Valgmuligheder!G15","v":0},null,true,"0, "]
["Nuvær",{"$f":"B16","v":"F2017"},null,{"$f":"D16","v":4},null,{"$f":"INDIRECT(\"'\"&B16&\"'!D\"&(D21+2))","v":"Ung"},null,{"$f":"INDIRECT(\"'\"&B16&\"'!C\"&(D21+2))","v":"Skriftlig"},null,null,null,{"$f":"Valgmuligheder!F16","v":0},null,null," ",null,null,null,{"$f":"Valgmuligheder!G16","v":0},null,true,"0, "]
[null,null,null,{"$f":"INDIRECT(\"'\"&B16&\"'!G\"&(D21+2))","v":"f..f.,..smf.m.,fm.mf.m.fma"},null,null,null,null,null,null,null,null,null,null,{"$f":"IF(N22,L22&\", \",\" \")","v":" "}]
[null,null,null,{"$f":"INDIRECT(\"'\"&B16&\"'!E\"&(D21+2))","v":"Pædiatri, Kirurgi,            "},null,null,null,null,null,null,null,null,null,null," "]
[null,null,null,{"$f":"INDIRECT(\"'\"&B16&\"'!F\"&(D21+2))","v":"Pneumoni,  Epiglottis, 0, 0, 0, 0, 0, 0, 0, 0, "},null,null,null,null,null,null,null,null,null,null,null,null,null,null,{"$f":"_xlfn.CONCAT(T9,T10,T11,T12,T13,T14,T15,T16,T17,T18,T19,T20,T21)","v":""}]
[null,null,null,null,null,null,null,null,null,null,null,null,null,null," "]
[null,null,null,null,null,null,null,null,null,null,null,null,null,null,{"$f":"_xlfn.CONCAT(O11,O12,O13,O14,O15,O16,O17,O18,O19,O20,O21,O22,O23)","v":" Kirurgi,            "},null,null,null,null,null,null,{"$f":"_xlfn.CONCAT(V11,V12,V13,V14,V15,V16,V17,V18,V19,V20,V21,V22,V23)","v":"Pneumoni,  Epiglottis, 0, 0, 0, 0, 0, 0, 0, 0, "}]
[null,null,null,null,null,null,null,null,null,null,null,null,null,null," "]
[null,null,null,null,null,null,null,null,null,null,null,null,null,null," "]
[null,null,null,null,null,null,null,null,null,null,null,null,null,null," "]

{"sheet":"Søgning","index":4,"n_rows":0,"n_cols":0,"rows_kept":0,"cut":false,"hidden":false,"merged":[]}